[Event "Titled Tuesday Blitz July 13 2021"]
[White "Dobrowolski, Piotr"]
[Black "Altman, Joshua"]
[WhiteFideId "1106236"]
[BlackFideId "426210"]
[WhiteElo "2304"]
[BlackElo "1945"]
[Result "1/2-1/2"]
[Round "11"]
[TimeControl "180+1"]
[Date "2021.07.13"]
[WhiteClock "0:00:15"]
[BlackClock "0:00:33"]

1. e4 {[%clk 0:03:00]}  e6 {[%clk 0:03:00]} 2. Nf3 {[%clk 0:03:00]}  d5 {[%clk 0:03:00]} 3. Nc3 {[%clk 0:03:00]}  dxe4 {[%clk 0:02:54]} 4. Nxe4 {[%clk 0:03:00]}  Nd7 {[%clk 0:02:54]} 5. d4 {[%clk 0:02:59]}  Ngf6 {[%clk 0:02:55]} 6. Nxf6+ {[%clk 0:02:58]}  Nxf6 {[%clk 0:02:55]} 7. Bc4 {[%clk 0:02:59]}  Be7 {[%clk 0:02:54]} 8. O-O {[%clk 0:02:59]}  b6 {[%clk 0:02:54]} 9. Qe2 {[%clk 0:02:59]}  Bb7 {[%clk 0:02:54]} 10. Rd1 {[%clk 0:02:59]}  O-O {[%clk 0:02:54]} 11. Ne5 {[%clk 0:02:52]}  Qc8 {[%clk 0:02:47]} 12. Bg5 {[%clk 0:02:27]}  c5 {[%clk 0:02:38]} 13. Bb5 {[%clk 0:01:53]}  a6 {[%clk 0:02:27]} 14. Bd7 {[%clk 0:01:19]}  Nxd7 {[%clk 0:02:07]} 15. Bxe7 {[%clk 0:01:18]}  Re8 {[%clk 0:02:07]} 16. Bd6 {[%clk 0:00:56]}  Nxe5 {[%clk 0:02:07]} 17. dxe5 {[%clk 0:00:55]}  Qc6 {[%clk 0:02:05]} 18. Qg4 {[%clk 0:00:55]}  Qe4 {[%clk 0:01:57]} 19. Qxe4 {[%clk 0:00:48]}  Bxe4 {[%clk 0:01:58]} 20. c3 {[%clk 0:00:48]}  c4 {[%clk 0:01:51]} 21. f3 {[%clk 0:00:47]}  Bd5 {[%clk 0:01:51]} 22. Kf2 {[%clk 0:00:44]}  b5 {[%clk 0:01:49]} 23. a4 {[%clk 0:00:43]}  f6 {[%clk 0:01:41]} 24. Ra3 {[%clk 0:00:40]}  Kf7 {[%clk 0:01:34]} 25. Rda1 {[%clk 0:00:39]}  Bc6 {[%clk 0:01:29]} 26. axb5 {[%clk 0:00:38]}  axb5 {[%clk 0:01:26]} 27. Ra7+ {[%clk 0:00:38]}  Kg8 {[%clk 0:01:20]} 28. R1a6 {[%clk 0:00:35]}  Bd5 {[%clk 0:01:13]} 29. exf6 {[%clk 0:00:28]}  gxf6 {[%clk 0:01:13]} 30. Bc5 {[%clk 0:00:28]}  Rxa7 {[%clk 0:01:10]} 31. Rxa7 {[%clk 0:00:28]}  Ra8 {[%clk 0:01:09]} 32. Rxa8+ {[%clk 0:00:20]}  Bxa8 {[%clk 0:01:10]} 33. Ke3 {[%clk 0:00:20]}  Kf7 {[%clk 0:01:09]} 34. g4 {[%clk 0:00:20]}  Bd5 {[%clk 0:01:04]} 35. h4 {[%clk 0:00:21]}  Kg7 {[%clk 0:01:01]} 36. f4 {[%clk 0:00:21]}  Bg2 {[%clk 0:00:52]} 37. Bd4 {[%clk 0:00:20]}  Kf7 {[%clk 0:00:50]} 38. h5 {[%clk 0:00:21]}  Bh3 {[%clk 0:00:49]} 39. g5 {[%clk 0:00:21]}  fxg5 {[%clk 0:00:48]} 40. fxg5 {[%clk 0:00:21]}  Bf5 {[%clk 0:00:49]} 41. Kf4 {[%clk 0:00:21]}  Ke7 {[%clk 0:00:45]} 42. g6 {[%clk 0:00:20]}  hxg6 {[%clk 0:00:42]} 43. h6 {[%clk 0:00:20]}  Kf7 {[%clk 0:00:37]} 44. Kg5 {[%clk 0:00:14]}  Kg8 {[%clk 0:00:36]} 45. Be5 {[%clk 0:00:15]}  Kh7 {[%clk 0:00:33]} 46. Bd4 {[%clk 0:00:14]}  Be4 {[%clk 0:00:32]} 47. Be5 {[%clk 0:00:14]}  Bf5 {[%clk 0:00:32]} 48. Bd4 {[%clk 0:00:14]}  Be4 {[%clk 0:00:33]} 49. Be5 {[%clk 0:00:15]}  Bf5 {[%clk 0:00:33]} 1/2-1/2


[Site "https://www.chess.com"]

[Event "Titled Tuesday Blitz July 13 2021"]
[White "Dolzhykova, Kateryna"]
[Black "Hansen, Sune Berg"]
[WhiteFideId "14113414"]
[BlackFideId "1400266"]
[WhiteElo "2151"]
[BlackElo "2632"]
[Result "1-0"]
[Round "11"]
[TimeControl "180+1"]
[Date "2021.07.13"]
[WhiteClock "0:01:08"]
[BlackClock "0:00:18"]

1. e4 {[%clk 0:03:00]}  e5 {[%clk 0:02:59]} 2. Nf3 {[%clk 0:03:00]}  Nc6 {[%clk 0:02:59]} 3. Bc4 {[%clk 0:02:57]}  Nf6 {[%clk 0:02:58]} 4. Ng5 {[%clk 0:02:57]}  d5 {[%clk 0:02:58]} 5. exd5 {[%clk 0:02:58]}  Na5 {[%clk 0:02:59]} 6. Bb5+ {[%clk 0:02:58]}  c6 {[%clk 0:02:59]} 7. dxc6 {[%clk 0:02:58]}  bxc6 {[%clk 0:02:59]} 8. Bd3 {[%clk 0:02:58]}  Nd5 {[%clk 0:02:59]} 9. Ne4 {[%clk 0:02:57]}  f5 {[%clk 0:02:39]} 10. Nec3 {[%clk 0:02:47]}  Nf4 {[%clk 0:02:35]} 11. O-O {[%clk 0:02:47]}  Nxd3 {[%clk 0:02:30]} 12. cxd3 {[%clk 0:02:48]}  Bd6 {[%clk 0:02:28]} 13. Na3 {[%clk 0:02:38]}  O-O {[%clk 0:02:25]} 14. Nc4 {[%clk 0:02:37]}  Bc7 {[%clk 0:02:16]} 15. Re1 {[%clk 0:02:27]}  Re8 {[%clk 0:02:05]} 16. b4 {[%clk 0:02:13]}  Nb7 {[%clk 0:01:49]} 17. Qf3 {[%clk 0:02:04]}  Qf6 {[%clk 0:01:23]} 18. Bb2 {[%clk 0:01:56]}  Bd7 {[%clk 0:01:04]} 19. Na4 {[%clk 0:01:44]}  e4 {[%clk 0:01:00]} 20. dxe4 {[%clk 0:01:34]}  Qh6 {[%clk 0:00:58]} 21. g3 {[%clk 0:01:30]}  fxe4 {[%clk 0:00:55]} 22. Rxe4 {[%clk 0:01:29]}  Rxe4 {[%clk 0:00:55]} 23. Qxe4 {[%clk 0:01:29]}  Re8 {[%clk 0:00:55]} 24. Qd3 {[%clk 0:01:22]}  Bh3 {[%clk 0:00:46]} 25. Ne3 {[%clk 0:01:18]}  Nd6 {[%clk 0:00:35]} 26. Rc1 {[%clk 0:01:13]}  Ne4 {[%clk 0:00:18]} 27. Qc4+ {[%clk 0:01:12]}  Be6 {[%clk 0:00:18]} 28. Qxe4 {[%clk 0:01:08]} 1-0


[Site "https://www.chess.com"]

[Event "Titled Tuesday Blitz July 13 2021"]
[White "Wagner, Dinara"]
[Black "Zubritskiy, Artyom"]
[WhiteFideId "24157570"]
[BlackFideId "4181247"]
[WhiteElo "2260"]
[BlackElo "2559"]
[Result "1-0"]
[Round "11"]
[TimeControl "180+1"]
[Date "2021.07.13"]
[WhiteClock "0:00:41"]
[BlackClock "0:00:01"]

1. d4 {[%clk 0:03:00]}  Nc6 {[%clk 0:02:54]} 2. Nf3 {[%clk 0:02:58]}  d6 {[%clk 0:02:53]} 3. c4 {[%clk 0:02:56]}  g6 {[%clk 0:02:51]} 4. g3 {[%clk 0:02:53]}  Bg7 {[%clk 0:02:51]} 5. Bg2 {[%clk 0:02:53]}  Nf6 {[%clk 0:02:44]} 6. O-O {[%clk 0:02:52]}  O-O {[%clk 0:02:44]} 7. Nc3 {[%clk 0:02:53]}  Nd7 {[%clk 0:02:39]} 8. h3 {[%clk 0:02:23]}  a6 {[%clk 0:02:36]} 9. e4 {[%clk 0:02:21]}  Rb8 {[%clk 0:02:22]} 10. Be3 {[%clk 0:02:21]}  Na5 {[%clk 0:02:17]} 11. b3 {[%clk 0:02:09]}  b5 {[%clk 0:02:09]} 12. cxb5 {[%clk 0:02:09]}  axb5 {[%clk 0:02:10]} 13. Rc1 {[%clk 0:02:09]}  b4 {[%clk 0:02:04]} 14. Nd5 {[%clk 0:02:06]}  c6 {[%clk 0:02:04]} 15. Nf4 {[%clk 0:02:04]}  Ba6 {[%clk 0:02:02]} 16. Re1 {[%clk 0:02:03]}  Qb6 {[%clk 0:01:08]} 17. Qd2 {[%clk 0:01:58]}  Qb7 {[%clk 0:01:04]} 18. e5 {[%clk 0:01:52]}  Nb6 {[%clk 0:00:45]} 19. e6 {[%clk 0:01:48]}  Nd5 {[%clk 0:00:35]} 20. Nxd5 {[%clk 0:01:44]}  cxd5 {[%clk 0:00:35]} 21. exf7+ {[%clk 0:01:41]}  Rxf7 {[%clk 0:00:35]} 22. Ng5 {[%clk 0:01:41]}  Rf5 {[%clk 0:00:31]} 23. Ne6 {[%clk 0:01:39]}  Qd7 {[%clk 0:00:23]} 24. Bh6 {[%clk 0:01:36]}  Bh8 {[%clk 0:00:11]} 25. g4 {[%clk 0:01:36]}  Rf7 {[%clk 0:00:10]} 26. Bxd5 {[%clk 0:01:34]}  Rb5 {[%clk 0:00:05]} 27. Rc7 {[%clk 0:01:29]}  Qe8 {[%clk 0:00:05]} 28. Nf4 {[%clk 0:01:17]}  Rxd5 {[%clk 0:00:04]} 29. Nxd5 {[%clk 0:01:17]}  e6 {[%clk 0:00:03]} 30. Rxf7 {[%clk 0:00:47]}  Qxf7 {[%clk 0:00:04]} 31. Nf4 {[%clk 0:00:47]}  e5 {[%clk 0:00:03]} 32. dxe5 {[%clk 0:00:44]}  Bxe5 {[%clk 0:00:01]} 33. Rxe5 {[%clk 0:00:41]} 1-0


[Site "https://www.chess.com"]

[Event "Titled Tuesday Blitz July 13 2021"]
[White "Dudzinski, Pawel"]
[Black "Seul, Georg"]
[WhiteFideId "1117890"]
[BlackFideId "4601653"]
[WhiteElo "2193"]
[BlackElo "2332"]
[Result "1-0"]
[Round "11"]
[TimeControl "180+1"]
[Date "2021.07.13"]
[WhiteClock "0:00:03"]
[BlackClock "0:00:02"]

1. e4 {[%clk 0:03:00]}  d6 {[%clk 0:02:59]} 2. c4 {[%clk 0:02:59]}  e5 {[%clk 0:02:56]} 3. Nc3 {[%clk 0:02:59]}  Nc6 {[%clk 0:02:54]} 4. g3 {[%clk 0:03:00]}  h5 {[%clk 0:02:44]} 5. h3 {[%clk 0:02:59]}  h4 {[%clk 0:02:44]} 6. g4 {[%clk 0:02:59]}  Be7 {[%clk 0:02:43]} 7. Bg2 {[%clk 0:02:56]}  Bg5 {[%clk 0:02:43]} 8. d3 {[%clk 0:02:53]}  Bxc1 {[%clk 0:02:41]} 9. Qxc1 {[%clk 0:02:52]}  Nge7 {[%clk 0:02:41]} 10. Nge2 {[%clk 0:02:37]}  Ng6 {[%clk 0:02:41]} 11. f4 {[%clk 0:02:35]}  exf4 {[%clk 0:02:40]} 12. Nxf4 {[%clk 0:02:36]}  Nge5 {[%clk 0:02:29]} 13. Qe3 {[%clk 0:02:20]}  Ne7 {[%clk 0:02:01]} 14. Nce2 {[%clk 0:02:04]}  c5 {[%clk 0:02:00]} 15. O-O-O {[%clk 0:02:03]}  Qa5 {[%clk 0:01:55]} 16. Kb1 {[%clk 0:02:02]}  Be6 {[%clk 0:01:53]} 17. b3 {[%clk 0:02:01]}  O-O-O {[%clk 0:01:49]} 18. d4 {[%clk 0:02:01]}  cxd4 {[%clk 0:01:47]} 19. Nxd4 {[%clk 0:02:02]}  Qb6 {[%clk 0:01:27]} 20. Rhe1 {[%clk 0:01:42]}  Bxc4 {[%clk 0:01:17]} 21. Nf5 {[%clk 0:01:33]}  Nxf5 {[%clk 0:01:10]} 22. Qxb6 {[%clk 0:01:21]}  axb6 {[%clk 0:01:10]} 23. exf5 {[%clk 0:01:21]}  Ba6 {[%clk 0:01:08]} 24. Nd5 {[%clk 0:01:10]}  Rhe8 {[%clk 0:00:51]} 25. f6 {[%clk 0:01:01]}  gxf6 {[%clk 0:00:48]} 26. Nxf6 {[%clk 0:01:00]}  Re6 {[%clk 0:00:46]} 27. Nd5 {[%clk 0:00:50]}  Kb8 {[%clk 0:00:44]} 28. Be4 {[%clk 0:00:25]}  Ka7 {[%clk 0:00:39]} 29. Bf5 {[%clk 0:00:24]}  Ree8 {[%clk 0:00:38]} 30. Nf6 {[%clk 0:00:23]}  Rh8 {[%clk 0:00:38]} 31. Re3 {[%clk 0:00:16]}  Bb5 {[%clk 0:00:38]} 32. a4 {[%clk 0:00:15]}  Bc6 {[%clk 0:00:37]} 33. Ka2 {[%clk 0:00:13]}  Kb8 {[%clk 0:00:37]} 34. g5 {[%clk 0:00:11]}  Kc7 {[%clk 0:00:32]} 35. Rc1 {[%clk 0:00:08]}  Kb8 {[%clk 0:00:32]} 36. Rd1 {[%clk 0:00:08]}  Rhf8 {[%clk 0:00:28]} 37. Ka3 {[%clk 0:00:08]}  b5 {[%clk 0:00:27]} 38. a5 {[%clk 0:00:08]}  Ka7 {[%clk 0:00:26]} 39. Kb4 {[%clk 0:00:08]}  Kb8 {[%clk 0:00:26]} 40. Ka3 {[%clk 0:00:07]}  Kc7 {[%clk 0:00:25]} 41. Rc3 {[%clk 0:00:06]}  Ra8 {[%clk 0:00:22]} 42. Nd5+ {[%clk 0:00:05]}  Kd8 {[%clk 0:00:22]} 43. Nb6 {[%clk 0:00:05]}  Rxa5+ {[%clk 0:00:21]} 44. Kb4 {[%clk 0:00:06]}  Ra2 {[%clk 0:00:21]} 45. Rxd6+ {[%clk 0:00:06]}  Kc7 {[%clk 0:00:21]} 46. Rdxc6+ {[%clk 0:00:04]}  bxc6 {[%clk 0:00:21]} 47. Nd5+ {[%clk 0:00:05]}  Kd6 {[%clk 0:00:20]} 48. Nf6 {[%clk 0:00:05]}  Rfa8 {[%clk 0:00:20]} 49. Ne4+ {[%clk 0:00:04]}  Kd5 {[%clk 0:00:19]} 50. Nf6+ {[%clk 0:00:03]}  Kd4 {[%clk 0:00:20]} 51. Rc1 {[%clk 0:00:04]}  Rb2 {[%clk 0:00:16]} 52. Rd1+ {[%clk 0:00:03]}  Nd3+ {[%clk 0:00:15]} 53. Rxd3+ {[%clk 0:00:04]}  Ke5 {[%clk 0:00:15]} 54. Bd7 {[%clk 0:00:03]}  Ra4+ {[%clk 0:00:15]} 55. Kc5 {[%clk 0:00:02]}  Rc4+ {[%clk 0:00:14]} 56. Kb6 {[%clk 0:00:02]}  Rc1 {[%clk 0:00:14]} 57. Bxc6 {[%clk 0:00:02]}  Kf5 {[%clk 0:00:11]} 58. Bxb5 {[%clk 0:00:02]}  Kxg5 {[%clk 0:00:11]} 59. Ne4+ {[%clk 0:00:01]}  Kf4 {[%clk 0:00:11]} 60. Nc5 {[%clk 0:00:01]}  Rg1 {[%clk 0:00:09]} 61. b4 {[%clk 0:00:02]}  Rg3 {[%clk 0:00:09]} 62. Rd4+ {[%clk 0:00:02]}  Ke5 {[%clk 0:00:09]} 63. Rxh4 {[%clk 0:00:01]}  f5 {[%clk 0:00:07]} 64. Rh5 {[%clk 0:00:02]}  Kf6 {[%clk 0:00:07]} 65. Nd3 {[%clk 0:00:02]}  Rb3 {[%clk 0:00:06]} 66. Nc5 {[%clk 0:00:03]}  f4 {[%clk 0:00:04]} 67. Rh6+ {[%clk 0:00:03]}  Kg5 {[%clk 0:00:04]} 68. Rh8 {[%clk 0:00:02]}  Rge3 {[%clk 0:00:04]} 69. Rg8+ {[%clk 0:00:02]}  Kh4 {[%clk 0:00:04]} 70. Rh8+ {[%clk 0:00:03]}  Kg3 {[%clk 0:00:04]} 71. Ka5 {[%clk 0:00:03]}  f3 {[%clk 0:00:04]} 72. Bc6 {[%clk 0:00:03]}  f2 {[%clk 0:00:03]} 73. Rg8+ {[%clk 0:00:04]}  Kh2 {[%clk 0:00:03]} 74. Ne4 {[%clk 0:00:04]}  f1=Q {[%clk 0:00:02]} 75. Nd2 {[%clk 0:00:03]}  Ra3+ {[%clk 0:00:02]} 76. Kb6 {[%clk 0:00:03]}  Qa6+ {[%clk 0:00:02]} 77. Kc5 {[%clk 0:00:03]}  Qa7+ {[%clk 0:00:02]} 78. Kd5 {[%clk 0:00:03]} 1-0


[Site "https://www.chess.com"]

[Event "Titled Tuesday Blitz July 13 2021"]
[White "Erdogdu, Mert"]
[Black "Mortazavi, Ali"]
[WhiteFideId "6301495"]
[BlackFideId "401323"]
[WhiteElo "2485"]
[BlackElo "2339"]
[Result "1-0"]
[Round "11"]
[TimeControl "180+1"]
[Date "2021.07.13"]
[WhiteClock "0:00:45"]
[BlackClock "0:00:12"]

1. e4 {[%clk 0:03:00]}  c6 {[%clk 0:02:50]} 2. d4 {[%clk 0:03:00]}  d5 {[%clk 0:02:49]} 3. exd5 {[%clk 0:03:00]}  cxd5 {[%clk 0:02:48]} 4. c4 {[%clk 0:03:00]}  Nf6 {[%clk 0:02:48]} 5. Nc3 {[%clk 0:03:00]}  g6 {[%clk 0:02:44]} 6. cxd5 {[%clk 0:03:00]}  Nxd5 {[%clk 0:02:29]} 7. Bc4 {[%clk 0:02:56]}  Nb6 {[%clk 0:02:26]} 8. Bb3 {[%clk 0:02:55]}  Bg7 {[%clk 0:02:27]} 9. Nf3 {[%clk 0:02:54]}  O-O {[%clk 0:02:27]} 10. O-O {[%clk 0:02:54]}  Nc6 {[%clk 0:02:21]} 11. d5 {[%clk 0:02:52]}  Na5 {[%clk 0:02:18]} 12. Bg5 {[%clk 0:02:46]}  Bg4 {[%clk 0:01:45]} 13. Re1 {[%clk 0:02:45]}  Re8 {[%clk 0:01:40]} 14. h3 {[%clk 0:02:42]}  Bxf3 {[%clk 0:01:40]} 15. Qxf3 {[%clk 0:02:42]}  Nxb3 {[%clk 0:01:40]} 16. axb3 {[%clk 0:02:42]}  Qd7 {[%clk 0:01:31]} 17. Rad1 {[%clk 0:02:26]}  h6 {[%clk 0:01:25]} 18. Bh4 {[%clk 0:02:24]}  Nc8 {[%clk 0:01:16]} 19. d6 {[%clk 0:01:54]}  Nxd6 {[%clk 0:01:01]} 20. Nd5 {[%clk 0:01:53]}  g5 {[%clk 0:00:25]} 21. Bg3 {[%clk 0:01:46]}  Qf5 {[%clk 0:00:25]} 22. Nxe7+ {[%clk 0:01:41]}  Rxe7 {[%clk 0:00:25]} 23. Rxe7 {[%clk 0:01:40]}  Qxf3 {[%clk 0:00:26]} 24. gxf3 {[%clk 0:01:40]}  Nf5 {[%clk 0:00:26]} 25. Rxb7 {[%clk 0:01:39]}  Bxb2 {[%clk 0:00:23]} 26. Rb8+ {[%clk 0:01:36]}  Rxb8 {[%clk 0:00:22]} 27. Bxb8 {[%clk 0:01:36]}  Bd4 {[%clk 0:00:23]} 28. Kf1 {[%clk 0:01:24]}  Kf8 {[%clk 0:00:22]} 29. Re1 {[%clk 0:01:11]}  Bb6 {[%clk 0:00:21]} 30. f4 {[%clk 0:01:08]}  Nd4 {[%clk 0:00:17]} 31. fxg5 {[%clk 0:01:03]}  hxg5 {[%clk 0:00:18]} 32. Bd6+ {[%clk 0:01:03]}  Kg8 {[%clk 0:00:18]} 33. Re8+ {[%clk 0:01:02]}  Kh7 {[%clk 0:00:18]} 34. b4 {[%clk 0:01:02]}  Kg6 {[%clk 0:00:18]} 35. Bc5 {[%clk 0:01:00]}  Nc2 {[%clk 0:00:15]} 36. Bxb6 {[%clk 0:00:50]}  axb6 {[%clk 0:00:15]} 37. Rb8 {[%clk 0:00:50]}  Kf5 {[%clk 0:00:13]} 38. Rxb6 {[%clk 0:00:50]}  Ke4 {[%clk 0:00:13]} 39. b5 {[%clk 0:00:50]}  f5 {[%clk 0:00:14]} 40. Re6+ {[%clk 0:00:49]}  Kf3 {[%clk 0:00:14]} 41. b6 {[%clk 0:00:47]}  f4 {[%clk 0:00:14]} 42. b7 {[%clk 0:00:47]}  g4 {[%clk 0:00:13]} 43. hxg4 {[%clk 0:00:47]}  Nd4 {[%clk 0:00:12]} 44. Rb6 {[%clk 0:00:45]} 1-0


[Site "https://www.chess.com"]

[Event "Titled Tuesday Blitz July 13 2021"]
[White "Gaboyan, Susanna"]
[Black "Ljukin, Sergei"]
[WhiteFideId "13303627"]
[BlackFideId "14102200"]
[WhiteElo "2135"]
[BlackElo "2309"]
[Result "1-0"]
[Round "11"]
[TimeControl "180+1"]
[Date "2021.07.13"]
[WhiteClock "0:00:09"]
[BlackClock "0:00:36"]

1. Nf3 {[%clk 0:03:00]}  d5 {[%clk 0:02:28]} 2. g3 {[%clk 0:02:59]}  Nc6 {[%clk 0:02:28]} 3. Bg2 {[%clk 0:03:00]}  e5 {[%clk 0:02:28]} 4. d3 {[%clk 0:03:01]}  Bg4 {[%clk 0:02:28]} 5. O-O {[%clk 0:03:01]}  Qd7 {[%clk 0:02:28]} 6. Nc3 {[%clk 0:02:58]}  O-O-O {[%clk 0:02:25]} 7. a4 {[%clk 0:02:36]}  Bh3 {[%clk 0:02:22]} 8. Bxh3 {[%clk 0:02:17]}  Qxh3 {[%clk 0:02:21]} 9. Ng5 {[%clk 0:02:18]}  Qd7 {[%clk 0:02:18]} 10. e4 {[%clk 0:02:09]}  d4 {[%clk 0:02:10]} 11. Nd5 {[%clk 0:02:07]}  f6 {[%clk 0:02:02]} 12. Nf3 {[%clk 0:01:49]}  Nge7 {[%clk 0:01:59]} 13. Nxe7+ {[%clk 0:01:28]}  Bxe7 {[%clk 0:01:59]} 14. a5 {[%clk 0:01:03]}  a6 {[%clk 0:01:56]} 15. Bd2 {[%clk 0:01:03]}  g5 {[%clk 0:01:54]} 16. b4 {[%clk 0:01:00]}  Bxb4 {[%clk 0:01:51]} 17. Bxb4 {[%clk 0:00:54]}  Nxb4 {[%clk 0:01:50]} 18. Rb1 {[%clk 0:00:31]}  c5 {[%clk 0:01:50]} 19. Nd2 {[%clk 0:00:28]}  h5 {[%clk 0:01:45]} 20. Nc4 {[%clk 0:00:24]}  Kb8 {[%clk 0:01:43]} 21. Qf3 {[%clk 0:00:15]}  Qe6 {[%clk 0:01:35]} 22. Nb6 {[%clk 0:00:08]}  h4 {[%clk 0:01:31]} 23. Nd5 {[%clk 0:00:07]}  Rh6 {[%clk 0:01:30]} 24. Nxb4 {[%clk 0:00:06]}  cxb4 {[%clk 0:01:30]} 25. Rxb4 {[%clk 0:00:07]}  Rdh8 {[%clk 0:01:28]} 26. Rfb1 {[%clk 0:00:08]}  R8h7 {[%clk 0:01:28]} 27. g4 {[%clk 0:00:03]}  h3 {[%clk 0:01:27]} 28. Qf5 {[%clk 0:00:03]}  Qxf5 {[%clk 0:01:26]} 29. exf5 {[%clk 0:00:04]}  Rc7 {[%clk 0:01:24]} 30. f3 {[%clk 0:00:03]}  Rhh7 {[%clk 0:01:22]} 31. Rb6 {[%clk 0:00:04]}  Rhf7 {[%clk 0:01:20]} 32. R6b2 {[%clk 0:00:03]}  Rc6 {[%clk 0:01:18]} 33. Rb6 {[%clk 0:00:02]}  Rfc7 {[%clk 0:01:17]} 34. R1b2 {[%clk 0:00:02]}  Rxb6 {[%clk 0:00:58]} 35. Rxb6 {[%clk 0:00:01]}  Rc6 {[%clk 0:00:58]} 36. Rxc6 {[%clk 0:00:01]}  bxc6 {[%clk 0:00:58]} 37. Kf2 {[%clk 0:00:02]}  Kc7 {[%clk 0:00:59]} 38. Kg3 {[%clk 0:00:03]}  Kd6 {[%clk 0:00:54]} 39. Kxh3 {[%clk 0:00:04]}  Ke7 {[%clk 0:00:42]} 40. Kg3 {[%clk 0:00:04]}  Kf7 {[%clk 0:00:42]} 41. h4 {[%clk 0:00:04]}  Kg7 {[%clk 0:00:40]} 42. h5 {[%clk 0:00:04]}  Kh6 {[%clk 0:00:32]} 43. Kf2 {[%clk 0:00:04]}  Kg7 {[%clk 0:00:32]} 44. Ke2 {[%clk 0:00:05]}  Kf7 {[%clk 0:00:32]} 45. Kd2 {[%clk 0:00:05]}  Ke7 {[%clk 0:00:33]} 46. Kc1 {[%clk 0:00:06]}  c5 {[%clk 0:00:32]} 47. Kb2 {[%clk 0:00:06]}  c4 {[%clk 0:00:33]} 48. dxc4 {[%clk 0:00:06]}  e4 {[%clk 0:00:33]} 49. fxe4 {[%clk 0:00:05]}  Kd6 {[%clk 0:00:34]} 50. h6 {[%clk 0:00:05]}  Ke5 {[%clk 0:00:35]} 51. h7 {[%clk 0:00:05]}  Kxe4 {[%clk 0:00:35]} 52. h8=Q {[%clk 0:00:06]}  Kf4 {[%clk 0:00:36]} 53. Qxf6 {[%clk 0:00:06]}  Kxg4 {[%clk 0:00:37]} 54. Qxd4+ {[%clk 0:00:07]}  Kxf5 {[%clk 0:00:37]} 55. c5 {[%clk 0:00:07]}  g4 {[%clk 0:00:37]} 56. c6 {[%clk 0:00:08]}  g3 {[%clk 0:00:38]} 57. c7 {[%clk 0:00:09]}  g2 {[%clk 0:00:39]} 58. c8=Q+ {[%clk 0:00:10]}  Kg5 {[%clk 0:00:38]} 59. Qg8+ {[%clk 0:00:09]}  Kh5 {[%clk 0:00:38]} 60. Qxg2 {[%clk 0:00:09]}  Kh6 {[%clk 0:00:36]} 61. Qh4# {[%clk 0:00:09]} 1-0


[Site "https://www.chess.com"]

[Event "Titled Tuesday Blitz July 13 2021"]
[White "Ghazarian, Kirk"]
[Black "Tsotsonava, Elene"]
[WhiteFideId "30908604"]
[BlackFideId "13615939"]
[WhiteElo "2003"]
[BlackElo "1847"]
[Result "1-0"]
[Round "11"]
[TimeControl "180+1"]
[Date "2021.07.13"]
[WhiteClock "0:00:42"]
[BlackClock "0:00:02"]

1. e4 {[%clk 0:03:00]}  c5 {[%clk 0:02:59]} 2. Nc3 {[%clk 0:02:57]}  Nc6 {[%clk 0:02:59]} 3. b3 {[%clk 0:02:57]}  Nf6 {[%clk 0:02:54]} 4. Bb2 {[%clk 0:02:56]}  e6 {[%clk 0:02:52]} 5. Bb5 {[%clk 0:02:53]}  d5 {[%clk 0:02:39]} 6. exd5 {[%clk 0:02:51]}  exd5 {[%clk 0:02:38]} 7. Nf3 {[%clk 0:02:50]}  Bd6 {[%clk 0:02:31]} 8. O-O {[%clk 0:02:45]}  O-O {[%clk 0:02:30]} 9. Bxc6 {[%clk 0:02:45]}  bxc6 {[%clk 0:02:30]} 10. h3 {[%clk 0:02:46]}  Be6 {[%clk 0:02:24]} 11. Na4 {[%clk 0:02:43]}  Re8 {[%clk 0:02:18]} 12. Re1 {[%clk 0:02:42]}  h6 {[%clk 0:02:14]} 13. d3 {[%clk 0:02:40]}  Nd7 {[%clk 0:01:57]} 14. Qd2 {[%clk 0:02:38]}  Nb6 {[%clk 0:01:54]} 15. Nc3 {[%clk 0:02:25]}  a5 {[%clk 0:01:49]} 16. Re2 {[%clk 0:02:13]}  a4 {[%clk 0:01:46]} 17. Rae1 {[%clk 0:02:11]}  a3 {[%clk 0:01:26]} 18. Bc1 {[%clk 0:02:06]}  Qf6 {[%clk 0:01:27]} 19. Nd1 {[%clk 0:01:59]}  d4 {[%clk 0:01:19]} 20. Nh2 {[%clk 0:01:53]}  Nd5 {[%clk 0:01:16]} 21. Re4 {[%clk 0:01:42]}  Bxh2+ {[%clk 0:00:50]} 22. Kxh2 {[%clk 0:01:40]}  Reb8 {[%clk 0:00:35]} 23. Qe2 {[%clk 0:01:38]}  Bf5 {[%clk 0:00:33]} 24. Re5 {[%clk 0:01:35]}  Nb4 {[%clk 0:00:28]} 25. Rxc5 {[%clk 0:01:19]}  Nxa2 {[%clk 0:00:28]} 26. Bf4 {[%clk 0:01:16]}  Rb5 {[%clk 0:00:20]} 27. Rxb5 {[%clk 0:01:02]}  cxb5 {[%clk 0:00:21]} 28. Qf3 {[%clk 0:01:01]}  Rc8 {[%clk 0:00:17]} 29. Be5 {[%clk 0:00:58]}  Qg6 {[%clk 0:00:17]} 30. Bxd4 {[%clk 0:00:56]}  Rxc2 {[%clk 0:00:15]} 31. Ne3 {[%clk 0:00:56]}  Qd6+ {[%clk 0:00:13]} 32. Kg1 {[%clk 0:00:52]}  Qxd4 {[%clk 0:00:14]} 33. Nxc2 {[%clk 0:00:50]}  Qxd3 {[%clk 0:00:12]} 34. Qxd3 {[%clk 0:00:49]}  Bxd3 {[%clk 0:00:09]} 35. Nxa3 {[%clk 0:00:50]}  b4 {[%clk 0:00:06]} 36. Nc4 {[%clk 0:00:47]}  Bf5 {[%clk 0:00:05]} 37. Re8+ {[%clk 0:00:44]}  Kh7 {[%clk 0:00:04]} 38. Rb8 {[%clk 0:00:45]}  Kg6 {[%clk 0:00:04]} 39. f4 {[%clk 0:00:46]}  Bd3 {[%clk 0:00:04]} 40. Kf2 {[%clk 0:00:44]}  Bc2 {[%clk 0:00:03]} 41. Nd2 {[%clk 0:00:43]}  Kf5 {[%clk 0:00:03]} 42. Ke3 {[%clk 0:00:42]}  Nc1 {[%clk 0:00:02]} 43. Rb6 {[%clk 0:00:41]}  Nxb3 {[%clk 0:00:02]} 44. g4# {[%clk 0:00:42]} 1-0


[Site "https://www.chess.com"]

[Event "Titled Tuesday Blitz July 13 2021"]
[White "Golubev, Mikhail"]
[Black "Shukhman, Anna"]
[WhiteFideId "14100983"]
[BlackFideId "54180058"]
[WhiteElo "2374"]
[BlackElo "1628"]
[Result "1-0"]
[Round "11"]
[TimeControl "180+1"]
[Date "2021.07.13"]
[WhiteClock "0:02:44"]
[BlackClock "0:02:22"]

1. e4 {[%clk 0:03:00]}  c5 {[%clk 0:02:59]} 2. Nf3 {[%clk 0:03:00]}  e6 {[%clk 0:02:59]} 3. d4 {[%clk 0:03:00]}  cxd4 {[%clk 0:02:59]} 4. Nxd4 {[%clk 0:03:01]}  Nf6 {[%clk 0:03:00]} 5. Nc3 {[%clk 0:03:00]}  Nc6 {[%clk 0:03:00]} 6. Ndb5 {[%clk 0:02:57]}  d6 {[%clk 0:02:58]} 7. Bf4 {[%clk 0:02:55]}  e5 {[%clk 0:02:58]} 8. Bg5 {[%clk 0:02:56]}  a6 {[%clk 0:02:54]} 9. Na3 {[%clk 0:02:53]}  b5 {[%clk 0:02:48]} 10. Bxf6 {[%clk 0:02:53]}  gxf6 {[%clk 0:02:48]} 11. Nd5 {[%clk 0:02:53]}  Be6 {[%clk 0:02:44]} 12. c3 {[%clk 0:02:48]}  f5 {[%clk 0:02:31]} 13. exf5 {[%clk 0:02:45]}  Bxf5 {[%clk 0:02:31]} 14. Nc2 {[%clk 0:02:45]}  Be6 {[%clk 0:02:24]} 15. Nce3 {[%clk 0:02:44]}  Ne7 {[%clk 0:02:22]} 16. Nf6# {[%clk 0:02:44]} 1-0


[Site "https://www.chess.com"]